Cogmind - Beta 16.1 @@@ ROGUE MODE // 2026.02.10 @ 20:00:17 Player: Thqwib-Linux Result: Self-destructed Performance ------------- Evolutions (2) 1000 Regions Visited (5) 1000 Robots Destroyed (19) 95 Value Destroyed (344) 344 Prototype IDs (0) 0 Alien Tech Used (0) 0 Bonus (0) 0 TOTAL SCORE: 2439 Bonus ------- None Cogmind --------- Core Integrity 453/550 Matter 173/300 Energy 195/250 System Corruption 0% Temperature Cool (90) Movement Treading (145) Location -8/Materials Parts ------- > --- POWER (1) -------- Ion Engine > --- PROPULSION (3) --- Advanced Treads > --- UTILITY (4) ------ Medium Storage Unit Improved Sensor Array Targeting Computer > --- WEAPON (3) ------- Light Assault Rifle Light Assault Rifle > --- INVENTORY (10) --- Light Nuclear Core Hardlight Generator Beam Cannon Light Assault Rifle Rocket Launcher Makeshift Hammer Peak State ------------ > --- POWER ------------ Ion Engine > --- PROPULSION ------- Advanced Treads Aluminum Leg Aluminum Leg > --- UTILITY ---------- Medium Storage Unit Improved Sensor Array Targeting Computer > --- WEAPON ----------- Medium Laser Makeshift Hammer > --- INVENTORY -------- Light Nuclear Core Beam Cannon Rocket Launcher [Rating: 16] Favorites ----------- Power Ion Engine Engine Ion Engine Propulsion Aluminum Leg Treads Advanced Treads Leg Aluminum Leg Utility Medium Storage Unit Device Improved Sensor Array Storage Medium Storage Unit Processor Targeting Computer Weapon Small Laser Energy Gun Small Laser Energy Cannon Beam Cannon Ballistic Gun Assault Rifle Launcher Rocket Launcher Impact Weapon Makeshift Hammer Build | -11 -10 -10 -10 -9 -8 ------- Run | Yrd Mat Min Exi Min Mat Slots Evolved 4 | . . . . . 4 Power . | . . . . . . Propulsion 1 | . . . . . 1 Utility 2 | . . . . . 2 Weapon 1 | . . . . . 1 Parts Attached 22 | . 4 5 . 5 8 Power 1 | . . . . 1 . Engine 1 | . . . . 1 . Core . | . . . . . . Reactor . | . . . . . . Propulsion 5 | . . 2 . 2 1 Treads 1 | . . . . . 1 Leg 4 | . . 2 . 2 . Wheel . | . . . . . . Hover . | . . . . . . Flight . | . . . . . . Utility 3 | . 2 . . . 1 Device 1 | . . . . . 1 Storage 1 | . 1 . . . . Processor 1 | . 1 . . . . Hackware . | . . . . . . Protection . | . . . . . . Artifact . | . . . . . . Weapon 13 | . 2 3 . 2 6 Energy Gun 5 | . 1 3 . 1 . Energy Cannon 1 | . . . . . 1 Ballistic Gun 5 | . 1 . . . 4 Ballistic Cannon . | . . . . . . Launcher 1 | . . . . 1 . Special Weapon . | . . . . . . Impact Weapon 1 | . . . . . 1 Slashing Weapon . | . . . . . . Piercing Weapon . | . . . . . . Special Melee Weapon . | . . . . . . Unidentified Prototypes . | . . . . . . Parts Lost 12 | . . 2 . 6 4 Power 1 | . . . . 1 . Propulsion 5 | . . 1 . 2 2 Utility . | . . . . . . Weapon 6 | . . 1 . 3 2 Highest Loss Streak 4 | . . 2 . 4 2 To Critical Strikes 1 | . . . . . 1 Average Backups 4 | 6 4 4 5 5 3 Power 1 | 1 1 1 2 1 1 Propulsion 1 | 4 2 1 1 . . Utility . | . . . . . . Weapon 1 | 1 1 1 2 2 2 Tool/Special . | . . . . . . Unused Backups 11 | . 4 3 . 1 3 Power 4 | . 1 . . 1 2 Propulsion 5 | . 2 3 . . . Utility 1 | . 1 . . . . Weapon 1 | . . . . . 1 Tool/Special . | . . . . . . Average Slot Usage (%) 91 | . 93 99 100 95 76 Engine 12 | . 14 14 14 13 8 Treads 1 | . . . . . 7 Leg 23 | . 28 27 28 25 13 Device 2 | . . . . . 7 Storage 12 | . 14 14 14 14 9 Processor 11 | . 8 14 14 14 9 Energy Gun 17 | . 13 21 28 25 5 Ballistic Gun 6 | . 13 6 . . 8 Impact Weapon 1 | . . . . . 6 Peak Build Rating 16 | 6 7 8 9 12 16 Average Rating 9 | 6 6 7 8 8 14 On Entrance 7 | 6 6 7 8 9 6 Avg Prop Armor Cover (%) 8 | . . . . . 8 Naked Turns . | . . . . . . Heaviest Build 22 | 13 18 20 19 22 22 Greatest Support 22 | 20 20 20 20 20 22 Greatest Overweight (x) 4 | . . 1 . 2 4 Average Overweight (x) . | . . . . . . Largest Inventory Capacity 10 | 8 10 10 10 10 10 Average Capacity 9 | 8 9 10 10 10 10 Most Carried 6 | 6 5 6 6 6 6 Average Carried 4 | 5 4 4 5 5 3 Final Capacity 10 | 8 10 10 10 10 10 Final Carried 6 | 4 4 5 6 3 6 Class Distribution -------------------- 58% | Mutant 36% | Scavenger-Mutant 4% | Scavenger-Gunner Dominant Class ---------------- Mutant | -10/Materials Scavenger-Mutant | -10/Mines Scavenger-Mutant | -10/Exiles Scavenger-Mutant | -9/Mines Mutant | -8/Materials Resources | -11 -10 -10 -10 -9 -8 ----------- Run | Yrd Mat Min Exi Min Mat Matter Collected 427 | 200 32 88 . 82 25 Remotely . | . . . . . . Salvage Created 532 | . 85 227 . 119 101 Parts 40 | . 8 8 . 10 14 Haulers Intercepted . | . . . . . . Recyclers Shooed 1 | . . 1 . . . Parts Field Recycled . | . . . . . . Retrieved Matter . | . . . . . . Parts Self-Destructed . | . . . . . . Prevented . | . . . . . . Parts Restored . | . . . . . . Kills | -11 -10 -10 -10 -9 -8 ------- Run | Yrd Mat Min Exi Min Mat Combat Hostiles Destroyed 23 | . 1 4 . 11 7 Guns 20 | . 1 4 . 10 5 Cannons 2 | . . . . . 2 AOE 1 | . . . . 1 . Classes Destroyed 5 | . 2 1 . 2 . Recycler 1 | . . 1 . . . Watcher 2 | . 2 . . . . Swarmer 11 | . . . . 4 7 Grunt 5 | . 1 4 . . . Assembled 7 | . . . . 7 . Best Kill Streak 4 | . 1 2 . 4 4 Combat Bots Only 4 | . 1 2 . 4 4 Max Kills in Single Turn 2 | . 1 1 . 2 1 Gunslinging 1 | . . . . 1 . Exploded 1 | . . . . 1 . Melee . | . . . . . . Uniques/NPCs Destroyed . | . . . . . . Combat | -11 -10 -10 -10 -9 -8 -------- Run | Yrd Mat Min Exi Min Mat Hostile Shots Fired 126 | . 6 24 . 50 46 Missed 27 | . 4 3 . 14 6 Hits 99 | . 2 21 . 36 40 Melee 7 | . . . . 7 . Projectile 92 | . 2 21 . 29 40 AOE 5 | . . . . 5 . Critical Strikes 4 | . . 1 . 2 1 Damage Taken 1516 | . 22 298 . 715 481 Core 223 | . . 12 . 114 97 Absorbed by Shields . | . . . . . . Core Remaining (%) 74 | 100 . . . 49 . Volleys Fired 74 | . 8 19 . 26 21 Largest 3 | . 2 2 . 2 3 Hottest 125 | . 60 105 . 125 60 Shots Fired 130 | . 15 36 . 39 40 Gun 123 | . 15 36 . 37 35 Cannon 5 | . . . . . 5 Launcher 2 | . . . . 2 . Special . | . . . . . . Kinetic 52 | . 8 12 . . 32 Thermal 76 | . 7 24 . 37 8 Explosive 2 | . . . . 2 . Electromagnetic . | . . . . . . Robot Hit Streak 15 | . 5 14 . 15 8 Robot Miss Streak 3 | . 3 1 . 1 3 Penetration Max . | . . . . . . Secondary Targets 2 | . . 1 . 1 . Max Gunslinging Chain 1 | . . 1 . 1 . Shots Hit Robots 88 | . 8 29 . 25 26 Core Hits 45 | . 5 12 . 18 10 Critical Kills . | . . . . . . Critical Parts Destroyed . | . . . . . . Critical Strikes 1 | . . . . 1 . Burn 1 | . . . . 1 . Melee Attacks . | . . . . . . Impact . | . . . . . . Slashing . | . . . . . . Piercing . | . . . . . . Sneak Attacks . | . . . . . . Combat Hostiles . | . . . . . . Follow-up Attacks . | . . . . . . Damage Inflicted 1208 | . 92 357 . 473 286 Guns 977 | . 92 357 . 328 200 Cannons 86 | . . . . . 86 Explosions 145 | . . . . 145 . Melee . | . . . . . . Ramming . | . . . . . . Kinetic 329 | . 47 119 . . 163 Thermal 734 | . 45 238 . 328 123 Explosive 145 | . . . . 145 . Electromagnetic . | . . . . . . Impact . | . . . . . . Slashing . | . . . . . . Piercing . | . . . . . . Highest Corruption 5 | . . . . 5 . Average Corruption 5 | . . . . 5 . Corruption Purged . | . . . . . . Corruption Blocked . | . . . . . . Overload Shots . | . . . . . . Overflow Damage . | . . . . . . Projectiles . | . . . . . . Explosions . | . . . . . . Melee . | . . . . . . Knockbacks . | . . . . . . Impact . | . . . . . . Kinetic . | . . . . . . Secondary . | . . . . . . Self-Inflicted Damage . | . . . . . . Shots . | . . . . . . Rammed . | . . . . . . Targets Rammed . | . . . . . . Kicked . | . . . . . . Crushed . | . . . . . . Highest Temperature 270 | . . 171 . 270 98 Average Temperature 72 | . . 72 . 80 44 Received Heat Transfer 447 | . 12 186 . 60 189 Siege Activations . | . . . . . . Martial Activations . | . . . . . . Shielding Activations . | . . . . . . Robots Disrupted . | . . . . . . Combat Hostiles . | . . . . . . Robots Corrupted . | . . . . . . Combat Hostiles . | . . . . . . Parts Fried . | . . . . . . Impact Corruptions . | . . . . . . Robots Melted . | . . . . . . Combat Hostiles . | . . . . . . Parts Melted 3 | . . 1 . 1 1 Heat Transferred 1834 | . 100 560 . 878 296 Parts Sabotaged . | . . . . . . Parts Stolen . | . . . . . . Parts Stripped . | . . . . . . Power Chain Reactions . | . . . . . . Alert | -11 -10 -10 -10 -9 -8 ------- Run | Yrd Mat Min Exi Min Mat Maximum Alert Level . | . . . . . . Low Security (%) 100 | 100 100 100 . 100 100 Level 1 . | . . . . . . Level 2 . | . . . . . . Level 3 . | . . . . . . Level 4 . | . . . . . . Level 5 . | . . . . . . High Security . | . . . . . . Max Security . | . . . . . . Peak Influence 165 | . 63 53 . 105 165 Initial 13 | . . 13 . . . Average 29 | . 14 27 . 27 45 Influence Increases 564 | . 136 105 . 118 205 Destroy 0b10 Robot/C 320 | . 20 80 . 80 140 Destroy 0b10 Robot/NC 15 | . 10 5 . . . Destroy Leader 54 | . 4 20 . 10 20 Successful Hack 57 | . 57 . . . . Destroy Structure 13 | . . . . 13 . Lose Combat Pursuer 105 | . 45 . . 15 45 Influence Decreases 475 | . 102 131 8 118 116 Entered New Map 29 | . . 21 8 . . Time Decay 348 | . 102 90 . 70 86 Lost Part 98 | . . 20 . 48 30 Squads Dispatched 1 | . . . . . 1 Investigation . | . . . . . . Extermination . | . . . . . . Reinforcement 1 | . . . . . 1 Assault . | . . . . . . Garrison . | . . . . . . Intercept . | . . . . . . Searches Triggered . | . . . . . . Construction Impeded . | . . . . . . Haulers Reinforced . | . . . . . . Active Scanning Responses . | . . . . . . Cargo Convoy Interrupts . | . . . . . . Stealth | -11 -10 -10 -10 -9 -8 --------- Run | Yrd Mat Min Exi Min Mat Distress Signals . | . . . . . . Communications Jammed . | . . . . . . Distress Signals . | . . . . . . Times Spotted 41 | . 7 4 . 19 11 Peak Tracking Total 5 | . 2 2 . 5 4 Tactical Retreats 6 | . 2 . . 3 1 Traps | -11 -10 -10 -10 -9 -8 ------- Run | Yrd Mat Min Exi Min Mat Traps Triggered 3 | . 1 . . . 2 Indirectly . | . . . . . . Trap Hack Attempts . | . . . . . . Triggered . | . . . . . . Disarmed . | . . . . . . Reprogrammed . | . . . . . . Reused . | . . . . . . Traps Extracted . | . . . . . . Installed . | . . . . . . Triggered . | . . . . . . Machines | -11 -10 -10 -10 -9 -8 ---------- Run | Yrd Mat Min Exi Min Mat Machines Disabled . | . . . . . . Max in Single Turn . | . . . . . . Machines Repaired . | . . . . . . Machines Dismantled . | . . . . . . Machines Sabotaged . | . . . . . . Overloaded Fab Kills . | . . . . . . Hacking | -11 -10 -10 -10 -9 -8 --------- Run | Yrd Mat Min Exi Min Mat Machines Accessed 6 | . 5 . . . 1 Terminals 6 | . 5 . . . 1 Fabricators . | . . . . . . Repair Stations . | . . . . . . Recycling Units . | . . . . . . Scanalyzers . | . . . . . . Garrison Access . | . . . . . . Total Hacks 18 | . 16 . . . 2 Successful 6 | . 6 . . . . Failed 12 | . 10 . . . 2 Catastrophic 3 | . 3 . . . . Database Lockouts . | . . . . . . Manual 18 | . 15 . 1 . 2 Terminals 18 | . 16 . . . 2 Fabricators . | . . . . . . Repair Stations . | . . . . . . Recycling Units . | . . . . . . Scanalyzers . | . . . . . . Garrison Access . | . . . . . . Terminal Hacks 2 | . 2 . . . . Dispatch Records 1 | . 1 . . . . Zone Layout 1 | . 1 . . . . Fabricator Hacks . | . . . . . . Repair Station Hacks . | . . . . . . Recycling Unit Hacks . | . . . . . . Scanalyzer . | . . . . . . Garrison Access Hacks . | . . . . . . Unauthorized Hacks 4 | . 4 . . . . Terminals 4 | . 4 . . . . Botnet 4 | . 4 . . . . Fabricators . | . . . . . . Repair Stations . | . . . . . . Recycling Units . | . . . . . . Scanalyzers . | . . . . . . Garrison Access . | . . . . . . Data Cores Recovered . | . . . . . . Used . | . . . . . . Hacking Detections 6 | . 5 . . . 1 Full Trace Events . | . . . . . . Feedback Events . | . . . . . . Feedback Blocked . | . . . . . . Robot Schematics Acquired . | . . . . . . Robots Built . | . . . . . . Authchips . | . . . . . . Time . | . . . . . . Total Robot Build Rating . | . . . . . . Part Schematics Acquired . | . . . . . . Parts Built . | . . . . . . Authchips . | . . . . . . Time . | . . . . . . Total Part Build Rating . | . . . . . . Part Studies Acquired . | . . . . . . Parts Repaired . | . . . . . . Time . | . . . . . . Parts Recycled . | . . . . . . Recycled Matter . | . . . . . . Retrieved Matter . | . . . . . . Retrieved Components . | . . . . . . Parts Scanalyzed . | . . . . . . Part Schematics Acquired . | . . . . . . Parts Damaged . | . . . . . . Bothacking | -11 -10 -10 -10 -9 -8 ------------ Run | Yrd Mat Min Exi Min Mat Used RIF Installer . | . . . . . . Robots Hacked . | . . . . . . Non-combat . | . . . . . . Combat . | . . . . . . Robot Hacks Applied . | . . . . . . Relay Couplers Released . | . . . . . . Fabnet Peak Effective % . | . . . . . . Robots Rewired 2 | . . . 2 . . Allies Hacked . | . . . . . . Hacks Repelled . | . . . . . . Allies | -11 -10 -10 -10 -9 -8 -------- Run | Yrd Mat Min Exi Min Mat Total Allies 4 | . . . 2 2 . Largest Group 4 | . . . 2 4 . Highest-Rated Group 79 | . . . 29 79 . Highest-Rated Ally 31 | . . . 21 31 . Total Orders . | . . . . . . Ally Attacks 5 | . . . . 5 . Total Damage 93 | . . . . 93 . Kills . | . . . . . . Allies Corrupted . | . . . . . . Allies Melted . | . . . . . . Intel | -11 -10 -10 -10 -9 -8 ------- Run | Yrd Mat Min Exi Min Mat Active Infowar (turns) 383 | . . . . . 383 Sensors 383 | . . . . . 383 Robot Analysis Total . | . . . . . . Derelict Logs Recovered . | . . . . . . Drone Launches . | . . . . . . Drone Recoveries . | . . . . . . Exploration | -11 -10 -10 -10 -9 -8 ------------- Run | Yrd Mat Min Exi Min Mat Turns Passed 1654 | 4 433 187 269 339 422 Spaces Moved 949 | 3 322 91 213 205 115 Core 2 | . . . . . 2 Treads 68 | . . . . . 68 Legs 879 | 3 322 91 213 205 45 Wheels . | . . . . . . Hover . | . . . . . . Flight . | . . . . . . Fastest Speed 120 | 120 120 120 120 120 120 Average Speed 124 | 120 120 121 120 124 145 Slowest Speed 260 | 120 120 190 120 260 250 Overloaded Moves . | . . . . . . Propulsion Burnouts . | . . . . . . Robots Hopped . | . . . . . . Potential Cave-ins . | . . . . . . Cave-ins Triggered . | . . . . . . Exploration Rate (%) 32 | 2 54 31 61 37 10 Regions Visited 5 Branch Regions 3 Pre-discovered Areas . | . . . . . . Known Exits Taken . | . . . . . . Unknown Exits Taken 5 | 1 1 1 1 1 . Scrap Searched . | . . . . . . Spaces Dug . | . . . . . . Terrain Destroyed 14 | . . . . 14 . Melee . | . . . . . . Projectile . | . . . . . . AOE 14 | . . . . 14 . Terrain Rammed . | . . . . . . Walls Destroyed . | . . . . . . Machines Disabled . | . . . . . . Actions | -11 -10 -10 -10 -9 -8 --------- Run | Yrd Mat Min Exi Min Mat Total 1301 | 4 353 132 226 249 337 Wait 218 | . 17 10 2 11 178 Move 944 | 2 321 90 212 204 115 Hop . | . . . . . . Pick Up 10 | . 2 3 1 . 4 Fast Attach 18 | . 2 3 . 2 11 Attach 10 | . 2 1 . 4 3 Detach 5 | . . 1 . 1 3 Swap 2 | . . 1 . 1 . Drop 9 | 2 1 4 . . 2 Fire 74 | . 8 19 . 26 21 Melee . | . . . . . . Ram . | . . . . . . Kick . | . . . . . . Crush . | . . . . . . Escape Stasis . | . . . . . . Rewire 11 | . . . 11 . . Trap . | . . . . . . Miscellaneous . | . . . . . . Route ------- -11/Scrapyard -10/Materials (discovered 3 exits: [*Mat x2] / [*Min]) -10/Mines (discovered 2 exits: [*Mat] / *Exi) -10/Exiles -9/Mines -8/Materials History --------- Turn | Location | Event 1 | -11/Scrapyard | Discovered new exit (range 3) 5 | -11/Scrapyard | Entered Materials 154 | -10/Materials | Discovered new exit (range 12) 174 | -10/Materials | Discovered new exit (range 14) 249 | -10/Materials | Discovered new exit (range 13) 301 | -10/Materials | Build established: Mutant 438 | -10/Materials | Entered Mines 535 | -10/Mines | Received a Rocket Launcher from a helpful Derelict 591 | -10/Mines | Discovered new exit (range 11) 619 | -10/Mines | Deemed a non-threat by the Exiles lab entrance 621 | -10/Mines | Discovered new exit (range 5) 625 | -10/Mines | Entered Exiles 625 | -10/Exiles | Found Exiles lab destroyed 809 | -10/Exiles | Build established: Scavenger-Mutant 880 | -10/Exiles | Discovered new exit (range 10) 894 | -10/Exiles | Entered Mines 894 | -9/Mines | Accompanied by 2 allies 919 | -9/Mines | Met a Derelict bent on vengeance 1005 | -9/Mines | Assembled infested the area 1010 | -9/Mines | Assisted by a Guerilla fighting off Assembled 1058 | -9/Mines | Lost 5 allies 1198 | -9/Mines | Core integrity fell below 50% 1227 | -9/Mines | Discovered new exit (range 5) 1232 | -9/Mines | Lost 4 parts (1p1n2w) 1233 | -9/Mines | Entered Materials 1233 | -8/Materials | Evolved 4 slots: Propulsion x1, Utility x2, Weapon x1 1395 | -8/Materials | Build established: Mutant 1655 | -8/Materials | Self-destructed Last Messages --------------- 01610_ Acquired Hardlight Generator. 01617_ Triggered Blade Trap. 01617_ Massive razor-sharp blades shoot up from within the floor. 01617_ Ion Engine severed. 01617_ Adv. Treads severed. 01617_ Lgt. Assault Rifle severed. 01621_ Acquired Adv. Treads. 01623_ K-01 Serf collects debris. 01624_ Acquired Ion Engine. 01625_ Triggered Blade Trap. 01625_ Massive razor-sharp blades shoot up from within the floor. 01625_ Adv. Treads severed. 01625_ Ion Engine severed. 01627_ Acquired Lgt. Assault Rifle. 01630_ K-01 Serf collects debris. 01631_ Acquired Ion Engine. 01634_ U-05 Engineer lays Concrete. 01636_ Acquired Adv. Treads. 01639_ Aluminum Leg destroyed. 01653_ Lgt. Assault Rifle destroyed. Map ----- +----------------------------------------------------+ | | | | | | | | | | | | | | | | | | | | | ?????????????????????????????????????????????????? | | ?????????????????????????????????????????????????? | | ?????????????????????????????????????????????????? | | ########???????##########??####?##???????????????? | | #???????#!! +?? ? ????????????????? | | #???????#!! #?? ? ?????????????????? | | #???????#! #?? ?????????????????? | | #???????# +? ??????????????????? | | "" """ #???????# #?g ???????????????????? | | ""%""" #???????# """ #? ????????????????????? | | ""*""" #???????# """ ?#? ?????????????????????? | | =%* [ #???????# """ #?g#?????????????????????? | | ##+#####???????# ##g##????????????????????? | | %==###############+#### #????????????????????? | | *=%[ g T #????????????????????? | | * ##@ #????????????????????? | | """ """ """ """ ######????????????????????? | | """ """ """ """ #?????????????????????????? | | """ """ """ """ #?????????????????????????? | | #?????????????????????????? | | #?????????????????????????? | | " """ """ """ #?????????????????????????? | | T """ """ """ #?????????????????????????? | | " """ """ """! +?????????????????????????? | | ? #?????????????????????????? | | ? #?????????????????????????? | | ################### #?????????????????????????? | | ??????????????????? ?????????????????????????? | | ??????????????????# ?????????????????????????? | | ??????????????????? ??????????????????????????? | | ?????????????????????????????????????????????????? | | ?????????????????????????????????????????????????? | | ?????????????????????????????????????????????????? | | ?????????????????????????????????????????????????? | | ?????????????????????????????????????????????????? | | ?????????????????????????????????????????????????? | | ?????????????????????????????????????????????????? | | ?????????????????????????????????????????????????? | | ?????????????????????????????????????????????????? | | ?????????????????????????????????????????????????? | +----------------------------------------------------+ Best States ------------- Heat Dissipation 31 Energy Generation 10 Energy Capacity 250 Matter Stores 300 Matter Capacity 300 Sight Range 16 Robot Scan Range 15 Terrain Scan Density 10 Evasion (%) 55 Targeting Accuracy 5 Recoil Reduction 1 Item Schematics ----------------- None Robot Schematics ------------------ None Fabricated ------------ Nothing Repaired ---------- Nothing Studied --------- None Alien Tech Used ----------------- None Achievements -------------- None Challenges ------------ None Game ------ Seed DeuteriumStealthNanovents Manual? 0 Play Time 00:19:45 Cumulative 9.1 hours Start 2026.02.09 @ 23:04:06 End 2026.02.10 @ 20:00:17 Sessions 3 Manual Loads 0 Difficulty Rogue Special Mode None Game No. 17 Rogue 17 Adventurer 0 Explorer 0 Win Type - Total 0 Types 0/0/0/0/0/0/0/0/0/0 Lore% 34 Gallery% 21 Achievement% 21 Wizard Run 0 Options --------- Layout 0 ASCII 0 Keyboard 0 Movement Arrows Keybinds 0 Fullscreen 2 Font 18/X11Bold Map View 76x50 Zoom Use 0% Tactical HUD 1 Map Filters NONE Filters NONE Steam 1 RUN: 4e6f99be-36a5-419b-ab32-c2b9bce65a71